Cogmind - Beta 14 @@@ ROGUE MODE // 2024.09.09 @ 17:19:45 Player: Null_error Result: Destroyed by G-34 Mercenary with Small Laser Performance ------------- Evolutions (0) 0 Regions Visited (1) 200 Robots Destroyed (21) 105 Value Destroyed (355) 355 Prototype IDs (0) 0 Alien Tech Used (0) 0 Bonus (0) 0 TOTAL SCORE: 660 Bonus ------- None Cogmind --------- Core Integrity 0/250 Matter 296/300 Energy 100/100 System Corruption 0% Temperature Cool (6) Movement Walking (120) Location -10/Materials Parts ------- > --- POWER (1) -------- (None) > --- PROPULSION (2) --- Aluminum Leg > --- UTILITY (2) ------ Small Storage Unit Signal Interpreter > --- WEAPON (2) ------- Light Assault Rifle > --- INVENTORY (8) ---- Light Ion Engine Light Ion Engine Light Ion Engine Small Storage Unit Small Matter Pod (50) Medium Matter Pod (100) High-capacity Matter Pod (200) Signal Interpreter Peak State ------------ > --- POWER ------------ Light Ion Engine > --- PROPULSION ------- Aluminum Leg Aluminum Leg > --- UTILITY ---------- Small Storage Unit Visual Processing Unit > --- WEAPON ----------- EM Pulse Gun Medium Laser > --- INVENTORY -------- Light Ion Engine Light Ion Engine Light Ion Engine Small Matter Pod Medium Matter Pod High-capacity Matter Pod Signal Interpreter Light Assault Rifle [Rating: 8] Favorites ----------- Power Light Ion Engine Engine Light Ion Engine Propulsion Aluminum Leg Leg Aluminum Leg Hover Unit Hover Unit Utility Small Storage Unit Device Seismic Detector Storage Small Storage Unit Processor Signal Interpreter Weapon Medium Laser Energy Gun Medium Laser Ballistic Gun Assault Rifle Build | -11 -10 ------- Run | Yrd Mat Slots Evolved . | . . Power . | . . Propulsion . | . . Utility . | . . Weapon . | . . Parts Attached 19 | 8 11 Power 2 | 1 1 Engine 2 | 1 1 Core . | . . Reactor . | . . Propulsion 5 | 2 3 Treads . | . . Leg 3 | 2 1 Wheel . | . . Hover 2 | . 2 Flight . | . . Utility 6 | 2 4 Device 2 | 1 1 Storage 2 | 1 1 Processor 2 | . 2 Hackware . | . . Protection . | . . Artifact . | . . Weapon 6 | 3 3 Energy Gun 3 | 1 2 Energy Cannon . | . . Ballistic Gun 3 | 2 1 Ballistic Cannon . | . . Launcher . | . . Special Weapon . | . . Impact Weapon . | . . Slashing Weapon . | . . Piercing Weapon . | . . Special Melee Weapon . | . . Unidentified Prototypes . | . . Parts Lost 9 | . 9 Power 2 | . 2 Propulsion 4 | . 4 Utility 2 | . 2 Weapon 1 | . 1 Highest Loss Streak 4 | . 4 To Critical Strikes . | . . Average Slot Usage (%) 85 | . 85 Engine 10 | . 10 Leg 18 | . 18 Hover 2 | . 2 Device 6 | . 6 Storage 14 | . 14 Processor 5 | . 5 Energy Gun 20 | . 20 Ballistic Gun 5 | . 5 Peak Build Rating 8 | 7 8 Average Rating 6 | 5 6 On Entrance 3 | . 7 Naked Turns . | . . Heaviest Build 13 | 13 13 Greatest Support 20 | 20 20 Greatest Overweight (x) 4 | 3 4 Average Overweight (x) . | . . Largest Inventory Capacity 8 | 8 8 Average Capacity 7 | 7 8 Most Carried 8 | 6 8 Average Carried 6 | 2 7 Final Capacity 8 | 8 8 Final Carried 8 | 6 8 Class Distribution -------------------- 91% | Mutant 8% | Scavenger-Mutant Dominant Class ---------------- Mutant | -10/Materials Resources | -11 -10 ----------- Run | Yrd Mat Matter Collected 779 | 435 344 Remotely . | . . Salvage Created 702 | 183 519 Parts 40 | 11 29 Haulers Intercepted . | . . Recyclers Shooed 1 | . 1 Parts Field Recycled . | . . Retrieved Matter . | . . Parts Self-Destructed . | . . Prevented . | . . Kills | -11 -10 ------- Run | Yrd Mat Combat Hostiles Destroyed 12 | . 12 Guns 12 | . 12 Classes Destroyed 7 | 3 4 Worker 2 | 2 . Builder 1 | . 1 Tunneler 2 | 2 . Recycler 2 | 1 1 Watcher 2 | . 2 Swarmer 6 | . 6 Grunt 6 | . 6 Best Kill Streak 3 | 3 3 Combat Bots Only 3 | . 3 Max Kills in Single Turn 2 | 2 2 Gunslinging . | . . Exploded . | . . Melee . | . . Uniques/NPCs Destroyed . | . . Combat | -11 -10 -------- Run | Yrd Mat Hostile Shots Fired 116 | . 116 Missed 30 | . 30 Damage Taken 911 | . 911 Core 253 | . 253 Absorbed by Shields . | . . Core Remaining (%) 100 | 100 . Volleys Fired 73 | 6 67 Largest 2 | 2 2 Hottest 100 | 60 100 Shots Fired 123 | 12 111 Gun 123 | 12 111 Cannon . | . . Launcher . | . . Special . | . . Kinetic 34 | 6 28 Thermal 62 | . 62 Explosive . | . . Electromagnetic 27 | 6 21 Robot Hit Streak 11 | 3 11 Robot Miss Streak 5 | 2 5 Penetration Max . | . . Secondary Targets . | . . Shots Hit Robots 70 | 7 63 Core Hits 35 | 6 29 Critical Kills . | . . Critical Parts Destroyed . | . . Critical Strikes 4 | . 4 Burn 4 | . 4 Melee Attacks . | . . Impact . | . . Slashing . | . . Piercing . | . . Sneak Attacks . | . . Combat Hostiles . | . . Follow-up Attacks . | . . Damage Inflicted 949 | 99 850 Guns 880 | 99 781 Cannons . | . . Explosions 62 | . 62 Melee . | . . Ramming 7 | . 7 Kinetic 230 | 49 181 Thermal 499 | . 499 Explosive . | . . Electromagnetic 213 | 50 163 Impact . | . . Slashing . | . . Piercing . | . . Highest Corruption . | . . Average Corruption . | . . Corruption Purged . | . . Corruption Blocked . | . . Overload Shots . | . . Overflow Damage . | . . Projectiles . | . . Explosions . | . . Melee . | . . Knockbacks . | . . Impact . | . . Kinetic . | . . Secondary . | . . Self-Inflicted Damage 1 | . 1 Shots . | . . Rammed 1 | . 1 Targets Rammed 3 | . 3 Kicked 2 | . 2 Crushed . | . . Highest Temperature 472 | . 472 Average Temperature 165 | . 165 Received Heat Transfer 309 | . 309 Effects 5 | . 5 Shutdowns 1 | . 1 Energy Bleed 2 | . 2 Matter Decay 1 | . 1 Damage (minor) 1 | . 1 Siege Activations . | . . Robots Corrupted . | . . Combat Hostiles . | . . Parts Fried . | . . Impact Corruptions . | . . Robots Melted . | . . Combat Hostiles . | . . Parts Melted 1 | . 1 Heat Transferred 1654 | . 1654 Parts Sabotaged . | . . Parts Stolen . | . . Parts Stripped . | . . Power Chain Reactions 1 | . 1 Alert | -11 -10 ------- Run | Yrd Mat Peak Influence 241 | 25 241 Initial 16 | . 16 Average 108 | 11 133 Maximum Alert Level 1 | . 1 Low Security (%) 79 | 100 74 Level 1 20 | . 25 Level 2 . | . . Level 3 . | . . Level 4 . | . . Level 5 . | . . High Security . | . . Max Security . | . . Squads Dispatched 2 | . 2 Investigation 1 | . 1 Extermination . | . . Reinforcement 1 | . 1 Assault . | . . Garrison . | . . Intercept . | . . Searches Triggered . | . . Construction Impeded . | . . Haulers Reinforced . | . . Active Scanning Responses . | . . Cargo Convoy Interrupts . | . . Stealth | -11 -10 --------- Run | Yrd Mat Distress Signals 2 | . 2 Communications Jammed . | . . Distress Signals . | . . Times Spotted 25 | . 25 Peak Tracking Total 6 | . 6 Tactical Retreats 2 | . 2 Traps | -11 -10 ------- Run | Yrd Mat Traps Triggered 1 | . 1 Indirectly . | . . Trap Hack Attempts . | . . Triggered . | . . Disarmed . | . . Reprogrammed . | . . Reused . | . . Traps Extracted . | . . Installed . | . . Triggered . | . . Machines | -11 -10 ---------- Run | Yrd Mat Machines Disabled . | . . Max in Single Turn . | . . Machines Repaired . | . . Machines Dismantled . | . . Machines Sabotaged . | . . Overloaded Fab Kills . | . . Hacking | -11 -10 --------- Run | Yrd Mat Machines Accessed 2 | . 2 Terminals 2 | . 2 Fabricators . | . . Repair Stations . | . . Recycling Units . | . . Scanalyzers . | . . Garrison Access . | . . Total Hacks 7 | . 7 Successful 3 | . 3 Failed 4 | . 4 Catastrophic . | . . Database Lockouts . | . . Manual 7 | . 7 Terminals 7 | . 7 Fabricators . | . . Repair Stations . | . . Recycling Units . | . . Scanalyzers . | . . Garrison Access . | . . Terminal Hacks 3 | . 3 Robot Analysis 3 | . 3 Fabricator Hacks . | . . Repair Station Hacks . | . . Recycling Unit Hacks . | . . Scanalyzer . | . . Garrison Access Hacks . | . . Unauthorized Hacks . | . . Terminals . | . . Fabricators . | . . Repair Stations . | . . Recycling Units . | . . Scanalyzers . | . . Garrison Access . | . . Data Cores Recovered . | . . Used . | . . Hacking Detections . | . . Full Trace Events . | . . Feedback Events . | . . Feedback Blocked . | . . Robot Schematics Acquired . | . . Robots Built . | . . Authchips . | . . Time . | . . Total Robot Build Rating . | . . Part Schematics Acquired . | . . Parts Built . | . . Authchips . | . . Time . | . . Total Part Build Rating . | . . Parts Repaired . | . . Time . | . . Parts Recycled . | . . Recycled Matter . | . . Retrieved Matter . | . . Retrieved Components . | . . Parts Scanalyzed . | . . Part Schematics Acquired . | . . Parts Damaged . | . . Bothacking | -11 -10 ------------ Run | Yrd Mat Used RIF Installer . | . . Robots Hacked . | . . Non-combat . | . . Combat . | . . Robot Hacks Applied . | . . Relay Couplers Released . | . . Fabnet Peak Effective % . | . . Robots Rewired . | . . Allies Hacked . | . . Hacks Repelled . | . . Allies | -11 -10 -------- Run | Yrd Mat Total Allies . | . . Largest Group . | . . Highest-Rated Group . | . . Highest-Rated Ally . | . . Total Orders . | . . Ally Attacks . | . . Total Damage . | . . Kills . | . . Allies Corrupted . | . . Allies Melted . | . . Intel | -11 -10 ------- Run | Yrd Mat Robot Analysis Total 3 | . 3 Derelict Logs Recovered . | . . Drone Launches . | . . Drone Recoveries . | . . Exploration | -11 -10 ------------- Run | Yrd Mat Turns Passed 862 | 179 683 Spaces Moved 511 | 114 397 Core 63 | 21 42 Treads . | . . Legs 365 | 93 272 Wheels . | . . Hover 83 | . 83 Flight . | . . Fastest Speed 50 | 50 56 Average Speed 113 | 126 109 Slowest Speed 250 | 200 250 Overloaded Moves . | . . Propulsion Burnouts . | . . Robots Hopped . | . . Cave-ins Triggered . | . . Exploration Rate (%) 25 | 7 44 Regions Visited 1 Branch Regions . Pre-discovered Areas . | . . Known Exits Taken . | . . Unknown Exits Taken 1 | 1 . Scrap Searched . | . . Spaces Dug . | . . Terrain Destroyed 4 | . 4 Melee . | . . Projectile . | . . AOE 4 | . 4 Terrain Rammed . | . . Walls Destroyed . | . . Machines Disabled . | . . Actions | -11 -10 --------- Run | Yrd Mat Total 668 | 133 535 Wait 55 | 1 54 Move 510 | 113 397 Hop . | . . Pick Up 7 | 5 2 Fast Attach 13 | 7 6 Attach 1 | . 1 Detach . | . . Swap 5 | 1 4 Drop 1 | . 1 Fire 73 | 6 67 Melee . | . . Ram 1 | . 1 Kick 2 | . 2 Crush . | . . Escape Stasis . | . . Rewire . | . . Trap . | . . Miscellaneous . | . . Route ------- -11/Scrapyard -10/Materials (discovered 2 exits: [*Mat] / [*Min]) History --------- Turn | Location | Event 19 | -11/Scrapyard | Discovered new exit (range 15) 180 | -11/Scrapyard | Entered Materials 303 | -10/Materials | Build established: Mutant 426 | -10/Materials | Discovered new exit (range 9) 614 | -10/Materials | Core integrity fell below 50% 661 | -10/Materials | Lost 4 parts (1p2n1u) 686 | -10/Materials | Discovered new exit (range 10) 742 | -10/Materials | Core integrity fell below 20% 776 | -10/Materials | Lost 3 parts (2n1w) 863 | -10/Materials | Destroyed by G-34 Mercenary with Small Laser Last Messages --------------- 00793_ R-06 Scavenger suffers critical hit (Burn). 00793_ R-06 Scavenger destroyed. 00794_ G-47 Trooper destroyed. 00799_ Acquired 6 matter. 00803_ Acquired 1 matter. 00808_ R-06 Scavenger collects Com. Wheel. 00812_ R-06 Scavenger collects EM Pulse Gun. 00813_ Acquired 10 matter. 00815_ Acquired Aluminum Leg. 00816_ R-06 Scavenger collects Sml. Laser. 00817_ Acquired 10 matter. 00828_ Triggered Alarm Trap. 00828_ An alarm sounds. 00828_ ALERT: Alarm triggered, dispatching investigation squad. 00831_ U-05 Engineer lays Concrete. 00857_ R-06 Scavenger collects Imp. Heat Sink. 00861_ R-06 Scavenger collects Corrupted Hover Unit. Map ----- +----------------------------------------------------+ | ## # """ #??#????#??????#############??? | | ## # """ #????????#?#?#??# # #??? | | ## # "" #?????#?????????# # < #??? | | ## # """ #??????#######??# # #??? | | ## # "" #??????# T ]#??# """ + #??? | | ?# # "" #??????# ####* """ # #??? | | ?# # " #???#??# #??# """ # #??? | | ?# # ######## """ ########### #??? | | ## ##/####### # """ # | # #??? | | # """ # % # #??? | | +%% + """ """ # #??? | | ^^""" # """ #[""" """ + #??? | | ## ^ """ ###### # """ # """ """ # #??? | | ?## """ #????#### ## """ # """ """ # #??? | | ??# """ #???????#%## # """ """ # #??? | | ??+ """ #?#?#???# + !# # #??? | | ??# #???????# ################## #??? | | ??# #???????# #?????#??????????# #??? | | ??# #???????# #??#????#????????# #??? | | ??# #???? ??# #?#####??????????# #??? | | ??# +???????# ### #??#???????# #??? | | ??###### #???????# T #########??# #??? | | ???????# #?????#?# ### # ???? #??? | | ??????? ?????? ### %#????????? #??? | | ???????? ?????## #?# % #????????? #??? | | ??????????????????#####?#@ r########?? #??? | | ????????????????????????# # #?? ???? | | ???????????????########## # #????????? | | ???????????????# # "" #????????? | | ???????????????# # Y" #????????? | | ???????????????# ^ g # "" #????????? | | ???????????????# """ + #????????? | | ???????????????# """ ##############????????? | | ???????????????# """ #?????????????????????? | | ???????????????# #?????????????????????? | | ???????????????# #?????????????????????? | | ????????? ??????????????????? | | ???????# #???????????????? | | ???????#" #???????????????? | | ????????T #???????????????? | | ????????" #???????????????? | | ???????? #???????????????? | | ???????? """ """ #???????????????? | | ????????? """ """ !/ #???????????????? | | ????????? """ """ ! #???????????????? | | ?????????? ??? #???????????????? | | ?????????? ???? ??? #???????????????? | | ????????????????####???# #???????????????? | | ????????????????????????# ????????????????? | | ????????????????????????? ???????????????????? | +----------------------------------------------------+ Best States ------------- Heat Dissipation 25 Energy Generation 10 Energy Capacity 125 Matter Stores 300 Matter Capacity 300 Sight Range 18 Terrain Scan Range 14 Terrain Scan Density 10 Evasion (%) 55 Item Schematics ----------------- None Robot Schematics ------------------ None Fabricated ------------ Nothing Alien Tech Used ----------------- None Achievements -------------- Armchair Analyst Challenges ------------ None Game ------ Seed IntegrityDecoderBroadsword Manual? 0 Play Time 00:10:30 Cumulative 30.0 hours Start 2024.09.09 @ 17:10:51 End 2024.09.09 @ 17:19:45 Sessions 2 Manual Loads 0 Difficulty Rogue Special Mode None Game No. 34 Rogue 34 Adventurer 0 Explorer 0 Win Type - Total 0 Types 0/0/0/0/0/0/0/0/0 Lore% 18 Gallery% 34 Achievement% 24 Wizard Run 0 Options --------- Layout 2 ASCII 0 Keyboard 1 Movement Numpad Keybinds 0 Fullscreen 2 Font 24/Smallcaps Map View 50x44 Zoom Use 0% Tactical HUD 1 Map Filters NONE Filters LOW_CONTRAST(5,20,15) Steam 1 RUN: c4d3e1f1-7012-4c0b-b285-ba6ec86b3772